fUSD/lending_fUSD_20240616
["ID","MTS","AMOUNT","RATE_DAILY","PERIOD"]
[329624854,1718514694443,-546.36,0.00022739,3]
[329624855,1718514694467,-500.0,0.00022739,3]
[329624856,1718514694478,-500.0,0.00022739,3]
[329624857,1718514694512,-500.0,0.00022739,3]
[329624858,1718514694543,-500.0,0.00022739,3]
[329624859,1718514694563,-500.0,0.00022739,3]
[329624860,1718514694622,-500.0,0.00022739,3]
[329624861,1718514694640,-500.0,0.00022739,3]
[329624862,1718514694653,-500.0,0.00022739,3]
[329624863,1718514694666,-548.78264101,0.00022739,3]
[329624864,1718514694682,-500.0,0.00022739,3]
[329624865,1718514694698,-500.0,0.00022739,3]
[329624866,1718514694720,-578.1145038,0.00022739,3]
[329624867,1718514694779,-611.71,0.00022739,3]
[329624868,1718514694792,-500.0,0.00022739,3]
[329624869,1718514694844,-500.0,0.00022739,3]
[329624870,1718514694873,-1146.72,0.00022739,3]
[329624871,1718514694884,-500.0,0.00022739,3]
[329624872,1718514694895,-500.0,0.00022739,3]
[329624873,1718514694910,-500.0,0.00022739,3]
[329624874,1718514694924,-500.0,0.00022739,3]
[329624875,1718514694934,-500.0,0.00022739,3]
[329624876,1718514694982,-172.01100275,0.00022739,3]
[329624877,1718514694997,-500.0,0.00022739,3]
[329624878,1718514695008,-500.0,0.00022739,3]
[329624879,1718514695019,-500.0,0.00022739,3]
[329624880,1718514695033,-898.73,0.00022739,3]
[329624881,1718514695056,-500.0,0.00022739,3]
[329624882,1718514695066,-500.0,0.00022739,3]
[329624883,1718514695088,-607.26,0.00022739,3]
[329624884,1718514695100,-778.55,0.00022739,3]
[329624885,1718514695112,-500.0,0.00022739,3]
[329624886,1718514695132,-500.0,0.00022739,3]
[329624887,1718514695169,-500.0,0.00022739,3]
[329624888,1718514695181,-520.44511484,0.00022739,3]
[329624889,1718514695220,-510.7,0.00022739,3]
[329624890,1718514695231,-500.0,0.00022739,3]
[329624891,1718514695241,-738.65,0.00022739,3]
[329624892,1718514695264,-500.0,0.00022739,3]
[329624893,1718514695276,-595.17,0.00022739,3]
[329624894,1718514695286,-698.26,0.00022739,3]
[329624895,1718514695308,-500.0,0.00022739,3]
[329624896,1718514695318,-500.0,0.00022739,3]
[329624897,1718514695336,-500.0,0.00022739,3]
[329624898,1718514695385,-500.0,0.00022739,3]
[329624899,1718514695408,-500.0,0.00022739,3]
[329624900,1718514695432,-500.0,0.00022739,3]
[329624901,1718514695442,-500.0,0.00022739,3]
[329624902,1718514695452,-500.0,0.00022739,3]
[329624903,1718514695462,-500.0,0.00022739,3]
[329624904,1718514695476,-500.0,0.00022739,3]
[329624905,1718514695528,-500.0,0.00022739,3]
[329624906,1718514695539,-742.17,0.00022739,3]
[329624907,1718514695555,-832.09,0.00022739,3]
[329624908,1718514695567,-500.0,0.00022739,3]
[329624909,1718514695579,-500.0,0.00022739,3]
[329624910,1718514695589,-500.0,0.00022739,3]
[329624911,1718514695603,-500.0,0.00022739,3]
[329624912,1718514695613,-669.49,0.00022739,3]
[329624913,1718514695623,-500.0,0.00022739,3]
[329624914,1718514695644,-348.28375431,0.00022739,3]
[329624915,1718514695668,-500.0,0.00022739,3]
[329624916,1718514695679,-500.0,0.00022739,3]
[329624917,1718514695689,-847.82,0.00022739,3]
[329624918,1718514695699,-984.98,0.00022739,3]
[329624919,1718514695710,-500.0,0.00022739,3]
[329624920,1718514695721,-500.0,0.00022739,3]
[329624921,1718514695732,-514.45962512,0.00022739,3]
[329624922,1718514695759,-500.0,0.00022739,3]
[329624923,1718514695773,-500.0,0.00022739,3]
[329624924,1718514695800,-500.0,0.00022739,3]
[329624925,1718514695825,-500.0,0.00022739,2]
[329624926,1718514695849,-500.0,0.00022739,3]
[329624927,1718514695869,-652.56,0.00022739,3]
[329624928,1718514695882,-500.0,0.00022739,3]
[329624929,1718514695909,-500.0,0.00022739,3]
[329624930,1718514695926,-531.92429701,0.00022739,3]
[329624931,1718514695941,-500.0,0.00022739,3]
[329624932,1718514695956,-500.0,0.00022739,3]
[329624933,1718514695969,-500.0,0.00022739,3]
[329624934,1718514695980,-500.0,0.00022739,3]
[329624935,1718514696012,-843.09,0.00022739,3]
[329624936,1718514696037,-500.0,0.00022739,3]
[329624937,1718514696056,-535.33,0.00022739,3]
[329624938,1718514696067,-1201.34,0.00022739,3]
[329624939,1718514696080,-500.0,0.00022739,3]
[329624940,1718514696096,-909.26,0.00022739,3]
[329624941,1718514696124,-500.0,0.00022739,3]
[329624942,1718514696165,-500.0,0.00022739,3]
[329624943,1718514696200,-500.0,0.00022739,3]
[329624944,1718514696257,-1002.88,0.00022739,3]
[329624945,1718514696318,-500.0,0.00022739,3]
[329624946,1718514696331,-500.0,0.00022739,3]
[329624947,1718514696360,-778.38,0.00022739,3]
[329624948,1718514696376,-500.0,0.00022739,3]
[329624949,1718514696421,-500.0,0.00022739,3]
[329624950,1718514696449,-500.0,0.00022739,3]
[329624951,1718514696467,-500.0,0.00022739,3]
[329624952,1718514696481,-500.0,0.00022739,3]
[329624953,1718514696493,-1202.7,0.00022739,3]
[329624954,1718514696537,-500.0,0.00022739,3]
[329624955,1718514696548,-500.0,0.00022739,3]
[329624956,1718514696559,-776.34,0.00022739,3]
[329624957,1718514696574,-500.0,0.00022739,3]
[329624958,1718514696585,-500.0,0.00022739,3]
[329624959,1718514696606,-500.0,0.00022739,3]
[329624960,1718514696618,-544.11,0.00022739,3]
[329624961,1718514696629,-595.0688405,0.00022739,3]
[329624962,1718514696640,-500.0,0.00022739,3]
[329624963,1718514696657,-527.2,0.00022739,3]
[329624964,1718514696675,-500.0,0.00022739,3]
[329624965,1718514696686,-500.0,0.00022739,3]
[329624966,1718514696696,-500.0,0.00022739,3]
[329624967,1718514696709,-675.42,0.00022739,3]
[329624968,1718514696722,-500.0,0.00022739,7]
[329624969,1718514696733,-500.0,0.00022739,3]
[329624970,1718514696744,-500.0,0.00022739,3]
[329624971,1718514696755,-500.0,0.00022739,3]
[329624972,1718514696767,-500.0,0.00022739,3]
[329624973,1718514696778,-500.0,0.00022739,3]
[329624974,1718514696790,-500.0,0.00022739,3]
[329624975,1718514696806,-500.0,0.00022739,3]
[329624976,1718514696817,-500.0,0.00022739,3]
[329624977,1718514696829,-500.0,0.00022739,3]
[329624978,1718514696840,-343.84,0.00022739,3]
[329624979,1718514696862,-500.0,0.00022739,3]
[329624980,1718514696879,-500.0,0.00022739,3]
[329624981,1718514696896,-500.0,0.00022739,3]
[329624982,1718514696908,-500.0,0.00022739,3]
[329624983,1718514696921,-1832.91,0.00022739,3]
[329624984,1718514696943,-500.0,0.00022739,3]
[329624985,1718514696959,-500.0,0.00022739,3]
[329624986,1718514696976,-567.88,0.00022739,3]
[329624987,1718514696997,-551.74,0.00022739,3]
[329624988,1718514697037,-500.0,0.00022739,3]
[329624989,1718514697053,-186.9637444,0.00022739,3]
[329624990,1718514697065,-500.0,0.00022739,3]
[329624991,1718514697077,-901.11,0.00022739,3]
[329624992,1718514697090,-681.26,0.00022739,3]
[329624993,1718514697102,-500.0,0.00022739,3]
[329624994,1718514697116,-500.0,0.00022739,3]
[329624995,1718514697152,-500.0,0.00022739,3]
[329624996,1718514697166,-726.69,0.00022739,3]
[329624997,1718514697182,-500.0,0.00022739,3]
[329624998,1718514697200,-3304.19,0.00022739,3]
[329624999,1718514697212,-366.70332435,0.00022739,3]
[329625000,1718514697230,-545.46,0.00022739,3]
[329625001,1718514697257,-736.37,0.00022739,3]
[329625002,1718514697268,-500.0,0.00022739,3]
[329625003,1718514697281,-500.0,0.00022739,3]
[329625004,1718514697295,-500.0,0.00022739,3]
[329625005,1718514697313,-500.0,0.00022739,3]
[329625006,1718514697325,-500.0,0.00022739,3]
[329625007,1718514697339,-500.0,0.00022739,3]
[329625008,1718514697351,-500.0,0.00022739,3]
[329625009,1718514697369,-500.0,0.00022739,3]
[329625010,1718514697387,-500.0,0.00022739,3]
[329625011,1718514697398,-500.0,0.00022739,3]
[329625012,1718514697410,-14230.41,0.00022739,3]
[329625013,1718514697423,-997.85,0.00022739,3]
[329625014,1718514697468,-530.5,0.00022739,3]
[329625015,1718514697490,-500.0,0.00022739,3]
[329625016,1718514697500,-1006.75,0.00022739,3]
[329625017,1718514697513,-500.0,0.00022739,3]
[329625018,1718514697523,-500.0,0.00022739,3]
[329625019,1718514697537,-500.0,0.00022739,3]
[329625020,1718514697548,-500.0,0.00022739,3]
[329625021,1718514697564,-500.0,0.00022739,3]
[329625022,1718514697582,-500.0,0.00022739,3]
[329625023,1718514697596,-1157.82,0.00022739,3]
[329625024,1718514697615,-500.0,0.00022739,3]
[329625025,1718514697633,-759.3,0.00022739,3]
[329625026,1718514697654,-500.0,0.00022739,3]
[329625027,1718514697669,-500.0,0.00022739,3]
[329625028,1718514697681,-500.0,0.00022739,3]
[329625029,1718514697695,-566.27,0.00022739,3]
[329625030,1718514697709,-674.57,0.00022739,3]
[329625031,1718514697720,-500.0,0.00022739,3]
[329625032,1718514697736,-1539.31,0.00022739,3]
[329625033,1718514697752,-943.14,0.00022739,3]
[329625034,1718514697787,-500.0,0.00022739,3]
[329625035,1718514697808,-659.14,0.00022739,3]
[329625036,1718514697823,-500.0,0.00022739,3]
[329625037,1718514697834,-500.0,0.00022739,3]
[329625038,1718514697844,-500.0,0.00022739,3]
[329625039,1718514697864,-199.21188398,0.00022739,3]
[329625040,1718514697889,-560.32,0.00022739,3]
[329625041,1718514697900,-614.56,0.00022739,3]
[329625042,1718514697913,-500.0,0.00022739,3]
[329625043,1718514697925,-500.0,0.00022739,3]
[329625044,1718514697937,-557.31,0.00022739,3]
[329625045,1718514697953,-7764.92,0.00022739,3]
[329625046,1718514697964,-552.59,0.00022739,3]
[329625047,1718514697982,-661.73,0.00022739,3]
[329625048,1718514698008,-611.43,0.00022739,3]
[329625049,1718514698020,-674.64,0.00022739,3]
[329625050,1718514698037,-1729.68,0.00022739,3]
[329625051,1718514698056,-500.0,0.00022739,3]
[329625052,1718514698067,-500.0,0.00022739,3]
[329625053,1718514698088,-1354.36,0.00022739,3]
[329625054,1718514698116,-604.17,0.00022739,3]
[329625055,1718514698138,-10271.42,0.00022739,3]
[329625056,1718514698154,-664.59,0.00022739,3]
[329625057,1718514698165,-500.0,0.00022739,3]
[329625058,1718514698186,-900.1,0.00022739,3]
[329625059,1718514698224,-500.0,0.00022739,3]
[329625060,1718514698252,-500.0,0.00022739,3]
[329625061,1718514698264,-500.0,0.00022739,3]
[329625062,1718514698284,-500.0,0.00022739,3]
[329625063,1718514698322,-818.66,0.00022739,3]
[329625064,1718514698336,-500.0,0.00022739,3]
[329625065,1718514698361,-1612.07,0.00022739,3]
[329625066,1718514698372,-1755.9,0.00022739,3]
[329625067,1718514698428,-611.26,0.00022739,3]
[329625068,1718514698440,-500.0,0.00022739,3]
[329625069,1718514698452,-1606.26,0.00022739,3]
[329625070,1718514698467,-4378.33,0.00022739,3]
[329625071,1718514698481,-561.19278176,0.00022739,3]
[329625072,1718514698493,-500.0,0.00022739,3]
[329625073,1718514698505,-500.0,0.00022739,3]
[329625074,1718514698517,-4916.83,0.00022739,3]
[329625075,1718514698529,-2853.1,0.00022739,3]
[329625076,1718514698551,-500.0,0.00022739,3]
[329625077,1718514698563,-1035.35,0.00022739,3]
[329625078,1718514698576,-500.0,0.00022739,3]
[329625079,1718514698593,-869.12,0.00022739,3]
[329625080,1718514698638,-567.1,0.00022739,3]
[329625081,1718514698671,-578.11,0.00022739,3]
[329625082,1718514698686,-500.0,0.00022739,3]
[329625083,1718514698708,-500.0,0.00022739,3]
[329625084,1718514698723,-1538.82,0.00022739,3]
[329625085,1718514698746,-2296.48,0.00022739,3]
[329625086,1718514698793,-763.71,0.00022739,3]
[329625087,1718514698805,-1775.07,0.00022739,3]
[329625088,1718514698815,-500.0,0.00022739,3]
[329625089,1718514698826,-964.71,0.00022739,3]
[329625090,1718514698838,-500.0,0.00022739,3]
[329625091,1718514698851,-895.78,0.00022739,3]
[329625092,1718514698868,-642.17,0.00022739,3]
[329625093,1718514698884,-636.93,0.00022739,3]
[329625094,1718514698899,-2443.29,0.00022739,3]
[329625095,1718514698917,-1515.42,0.00022739,3]
[329625096,1718514698960,-500.0,0.00022739,3]
[329625097,1718514698973,-1004.46,0.00022739,3]
[329625098,1718514698993,-464.05408696,0.00022739,3]
[329625099,1718514699005,-1070.36,0.00022739,3]
[329625100,1718514699017,-803.03,0.00022739,3]
[329625101,1718514699045,-923.04,0.00022739,3]
[329625102,1718514699077,-500.0,0.00022739,3]
[329625103,1718514699095,-500.0,0.00022739,3]
[329625104,1718514699130,-593.8,0.00022739,3]
[329625105,1718514699165,-797.61,0.00022739,3]
[329625106,1718514699205,-500.0,0.00022739,3]
[329625107,1718514699230,-588.71,0.00022739,3]
[329625108,1718514699259,-500.0,0.00022739,3]
[329625109,1718514699276,-500.0,0.00022739,3]
[329625110,1718514699288,-2230.64,0.00022739,3]
[329625111,1718514699298,-1061.13,0.00022739,3]
[329625112,1718514699312,-500.0,0.00022739,3]
[329625113,1718514699336,-500.0,0.00022739,3]
[329625114,1718514699361,-9618.01,0.00022739,3]
[329625115,1718514699393,-500.0,0.00022739,3]
[329625116,1718514699431,-500.0,0.00022739,3]
[329625117,1718514699469,-500.0,0.00022739,3]
[329625118,1718514699481,-2383.54,0.00022739,3]
[329625119,1718514699511,-500.0,0.00022739,3]
[329625120,1718514699553,-500.0,0.00022739,3]
[329625121,1718514699566,-500.0,0.00022739,3]
[329625122,1718514699600,-860.94,0.00022739,3]
[329625123,1718514699613,-792.78,0.00022739,3]
[329625124,1718514699648,-4216.59,0.00022739,3]
[329625125,1718514699673,-858.57,0.00022739,3]
[329625126,1718514699710,-2109.27,0.00022739,3]
[329625127,1718514699738,-567.07,0.00022739,3]
[329625128,1718514699756,-500.0,0.00022739,3]
[329625129,1718514699775,-1037.47,0.00022739,3]
[329625130,1718514699796,-1400.62,0.00022739,3]
[329625131,1718514699828,-1574.3,0.00022739,3]
[329625132,1718514699844,-419.25515478,0.00022739,3]
[329625133,1718514699869,-500.0,0.00022739,3]
[329625134,1718514699888,-208.82,0.00022739,3]
[329625135,1718514699910,-500.0,0.00022739,3]
[329625136,1718514699940,-2771.95,0.00022739,3]
[329625137,1718514699966,-500.0,0.00022739,3]
[329625138,1718514699982,-3713.47,0.00022739,3]
[329625139,1718514700009,-1420.21,0.00022739,3]
[329625140,1718514700021,-534.45,0.00022739,3]
[329625141,1718514700042,-790.92,0.00022739,3]
[329625142,1718514700059,-500.0,0.00022739,3]
[329625143,1718514700078,-500.0,0.00022739,3]
[329625144,1718514700107,-1310.36,0.00022739,3]
[329625145,1718514700135,-500.0,0.00022739,3]
[329625146,1718514700180,-500.0,0.00022739,3]
[329625147,1718514700198,-633.25,0.00022739,3]
[329625148,1718514700227,-1378.93,0.00022739,3]
[329625149,1718514700238,-851.88,0.00022739,3]
[329625150,1718514700253,-500.0,0.00022739,3]
[329625151,1718514700266,-2966.95,0.00022739,3]
[329625152,1718514700284,-636.09,0.00022739,3]
[329625153,1718514700296,-712.87,0.00022739,3]
[329625154,1718514700312,-500.0,0.00022739,3]
[329625155,1718514700341,-827.77,0.00022739,3]
[329625156,1718514700355,-2232.36,0.00022739,3]
[329625157,1718514700368,-860.52,0.00022739,3]
[329625158,1718514700383,-2707.96,0.00022739,3]
[329625159,1718514700395,-614.18,0.00022739,3]
[329625160,1718514700409,-500.0,0.00022739,3]
[329625161,1718514700421,-2212.02,0.00022739,3]
[329625162,1718514700440,-500.0,0.00022739,3]
[329625163,1718514700459,-703.42,0.00022739,3]
[329625164,1718514700484,-721.36,0.00022739,3]
[329625165,1718514700496,-500.0,0.00022739,3]
[329625166,1718514700510,-500.0,0.00022739,3]
[329625167,1718514700526,-4360.28,0.00022739,3]
[329625168,1718514700548,-2177.96,0.00022739,3]
[329625169,1718514700579,-500.0,0.00022739,3]
[329625170,1718514700591,-1356.14,0.00022739,3]
[329625171,1718514700617,-500.0,0.00022739,3]
[329625172,1718514700633,-500.0,0.00022739,3]
[329625173,1718514700645,-500.0,0.00022739,3]
[329625174,1718514700674,-749.56,0.00022739,3]
[329625175,1718514700693,-500.0,0.00022739,3]
[329625176,1718514700707,-1848.29,0.00022739,3]
[329625177,1718514700720,-500.0,0.00022739,3]
[329625178,1718514700733,-1211.0,0.00022739,3]
[329625179,1718514700745,-299.11,0.00022739,3]
[329625180,1718514700756,-666.51,0.00022739,3]
[329625181,1718514700767,-1213.86,0.00022739,3]
[329625182,1718514700778,-578.68,0.00022739,3]
[329625183,1718514700789,-578.04,0.00022739,3]
[329625184,1718514700819,-583.95,0.00022739,3]
[329625185,1718514700845,-500.0,0.00022739,3]
[329625186,1718514700856,-2709.96,0.00022739,3]
[329625187,1718514700867,-500.0,0.00022739,3]
[329625188,1718514700879,-795.69,0.00022739,3]
[329625189,1718514700893,-1483.55,0.00022739,3]
[329625190,1718514700916,-1309.75,0.00022739,3]
[329625191,1718514700928,-790.88,0.00022739,3]
[329625192,1718514700941,-500.0,0.00022739,3]
[329625193,1718514700968,-500.0,0.00022739,3]
[329625194,1718514700998,-583.09771851,0.00022739,3]
[329625195,1718514701012,-555.11,0.00022739,3]
[329625196,1718514701032,-500.0,0.00022739,3]
[329625197,1718514701043,-1243.88,0.00022739,3]
[329625198,1718514701080,-3595.59,0.00022739,3]
[329625199,1718514701120,-500.0,0.00022739,3]
[329625200,1718514701149,-394.03544625,0.00022739,3]
[329625201,1718514701172,-500.0,0.00022739,3]
[329625202,1718514701198,-1564.83,0.00022739,3]
[329625203,1718514701217,-345.85741453,0.00022739,3]
[329625204,1718514701241,-1006.94,0.00022739,3]
[329625205,1718514701264,-500.0,0.00022739,3]
[329625206,1718514701281,-1366.9,0.00022739,3]
[329625207,1718514701293,-500.0,0.00022739,3]
[329625208,1718514701309,-500.0,0.00022739,3]
[329625209,1718514701324,-799.86,0.00022739,3]
[329625210,1718514701335,-523.6,0.00022739,3]
[329625211,1718514701352,-500.0,0.00022739,3]
[329625212,1718514701391,-729.35,0.00022739,3]
[329625213,1718514701434,-2013.29,0.00022739,3]
[329625214,1718514701446,-500.0,0.00022739,3]
[329625215,1718514701469,-500.0,0.00022739,3]
[329625216,1718514701482,-989.7,0.00022739,3]
[329625217,1718514701516,-1202.1,0.00022739,3]
[329625218,1718514701548,-1512.39,0.00022739,3]
[329625219,1718514701567,-500.0,0.00022739,3]
[329625220,1718514701579,-500.0,0.00022739,3]
[329625221,1718514701589,-500.0,0.00022739,3]
[329625222,1718514701608,-898.42,0.00022739,3]
[329625223,1718514701624,-680.39,0.00022739,3]
[329625224,1718514701637,-500.0,0.00022739,3]
[329625225,1718514701654,-651.97,0.00022739,3]
[329625226,1718514701677,-525.67,0.00022739,3]
[329625227,1718514701691,-500.0,0.00022739,3]
[329625228,1718514701706,-1084.0,0.00022739,3]
[329625229,1718514701720,-1217.87,0.00022739,3]
[329625230,1718514701730,-4820.64,0.00022739,3]
[329625231,1718514701749,-1818.54,0.00022739,3]
[329625232,1718514701772,-500.0,0.00022739,3]
[329625233,1718514701784,-633.1,0.00022739,3]
[329625234,1718514701796,-393.09556987,0.00022739,3]
[329625235,1718514701812,-2630.9,0.00022739,3]
[329625236,1718514701830,-1495.18,0.00022739,3]
[329625237,1718514701856,-151.0,0.00022739,2]
[329625238,1718514701873,-500.78,0.00022739,3]
[329625239,1718514701887,-1510.03,0.00022739,3]
[329625240,1718514701900,-1076.28,0.00022739,3]
[329625241,1718514701923,-500.0,0.00022739,3]
[329625242,1718514701947,-500.0,0.00022739,3]
[329625243,1718514701990,-1023.85,0.00022739,3]
[329625244,1718514702022,-500.0,0.00022739,3]
[329625245,1718514702068,-514.32,0.00022739,3]
[329625246,1718514702091,-801.98,0.00022739,3]
[329625247,1718514702102,-500.0,0.00022739,3]
[329625248,1718514702114,-526.07,0.00022739,3]
[329625249,1718514702129,-5728.5,0.00022739,3]
[329625250,1718514702141,-501.51,0.00022739,3]
[329625251,1718514702155,-1246.39,0.00022739,3]
[329625252,1718514702169,-12175.18,0.00022739,3]
[329625253,1718514702182,-1613.0,0.00022739,3]
[329625254,1718514702195,-500.0,0.00022739,3]
[329625255,1718514702208,-1529.61,0.00022739,3]
[329625256,1718514702220,-918.72,0.00022739,3]
[329625257,1718514702313,-2489.26,0.00022739,3]
[329625258,1718514702366,-771.85,0.00022739,3]
[329625259,1718514702380,-500.0,0.00022739,3]
[329625260,1718514702393,-500.0,0.00022739,3]
[329625261,1718514702406,-1085.72,0.00022739,3]
[329625262,1718514702419,-3730.485,0.00022749,2]
[329625263,1718514702444,-11679.13853857,0.0002277,2]
[329625264,1718514702467,-152.0,0.00022799,4]
[329625265,1718514702479,-961.44748654,0.000228,2]
[329625266,1718514702490,-337.25479385,0.00022925,3]
[329625267,1718514702509,-200.0,0.0002295,2]
[329625268,1718514702520,-483.0,0.00022983,15]
[329625269,1718514702538,-483.0,0.00022993,15]
[329625270,1718514702550,-150.0,0.00022999,2]
[329625271,1718514702561,-228.19569901,0.00022999,3]
[329625272,1718514702573,-5000.0,0.00023,2]
[329625273,1718514702608,-5300.0,0.00023,7]
[329625274,1718514702623,-110519.13446747,0.00023,2]
[329625275,1718514702644,-393.94316727,0.00023,2]
[329625276,1718514702657,-489.0,0.00023,6]
[329625277,1718514702681,-1300.0,0.00023,2]
[329625278,1718514702704,-190.0,0.00023,6]
[329625279,1718514702724,-483.0,0.00023003,15]
[329625280,1718514702738,-500.0,0.00023012,3]
[329625281,1718514702754,-578.73847292,0.00023012,3]
[329625282,1718514702766,-81661.85728311,0.00023013,13]
[329625283,1718514702781,-500.0,0.00023013,3]
[329625284,1718514702794,-500.0,0.00023013,3]
[329625285,1718514702817,-500.0,0.00023013,3]
[329625286,1718514702828,-500.0,0.00023013,3]
[329625287,1718514702841,-500.0,0.00023013,3]
[329625288,1718514702862,-500.0,0.00023013,3]
[329625289,1718514702874,-500.0,0.00023013,3]
[329625290,1718514702895,-500.0,0.00023013,3]
[329625291,1718514702919,-500.0,0.00023013,3]
[329625292,1718514702958,-500.0,0.00023013,3]
[329625293,1718514702972,-500.0,0.00023013,3]
[329625294,1718514702992,-500.0,0.00023013,3]
[329625295,1718514703005,-267.21464278,0.00023013,3]
[329625296,1718514703033,-500.0,0.00023013,3]
[329625297,1718514703046,-500.0,0.00023013,3]
[329625298,1718514703058,-500.0,0.00023013,3]
[329625299,1718514703071,-500.0,0.00023013,3]
[329625300,1718514703091,-1006.68,0.00023013,3]
[329625301,1718514703120,-810.35,0.00023013,3]
[329625302,1718514703155,-500.0,0.00023013,3]
[329625303,1718514703183,-500.0,0.00023013,3]
[329625304,1718514703201,-731.88,0.00023013,3]
[329625305,1718514703231,-500.0,0.00023013,3]
[329625306,1718514703248,-500.0,0.00023013,3]
[329625307,1718514703266,-681.94,0.00023013,3]
[329625308,1718514703293,-627.82,0.00023013,3]
[329625309,1718514703317,-536.58,0.00023013,3]
[329625310,1718514703328,-500.0,0.00023013,3]
[329625311,1718514703339,-500.0,0.00023013,3]
[329625312,1718514703353,-500.0,0.00023013,3]
[329625313,1718514703381,-590.20762706,0.00023013,3]
[329625314,1718514703417,-500.0,0.00023013,3]
[329625315,1718514703452,-901.46,0.00023013,3]
[329625316,1718514703474,-500.0,0.00023013,3]
[329625317,1718514703505,-500.0,0.00023013,3]
[329625318,1718514703539,-2047.36,0.00023013,3]
[329625319,1718514703592,-500.0,0.00023013,3]
[329625320,1718514703620,-500.0,0.00023013,3]
[329625321,1718514703650,-500.0,0.00023013,3]
[329625322,1718514703692,-500.0,0.00023013,3]
[329625323,1718514703716,-500.0,0.00023013,3]
[329625324,1718514703736,-500.0,0.00023013,3]
[329625325,1718514703766,-500.0,0.00023013,3]
[329625326,1718514703782,-500.0,0.00023013,3]
[329625327,1718514703793,-843.71,0.00023013,3]
[329625328,1718514703812,-500.0,0.00023013,3]
[329625329,1718514703843,-500.0,0.00023013,3]
[329625330,1718514703873,-500.0,0.00023013,3]
[329625331,1718514703893,-500.0,0.00023013,3]
[329625332,1718514703919,-513.2,0.00023013,3]
[329625333,1718514704018,-1056.47,0.00023013,3]
[329625334,1718514704030,-500.0,0.00023013,3]
[329625335,1718514704045,-469.35105793,0.00023013,3]
[329625336,1718514704065,-500.0,0.00023013,3]
[329625337,1718514704136,-906.02,0.00023013,3]
[329625338,1718514704150,-500.0,0.00023013,3]
[329625339,1718514704169,-500.0,0.00023013,3]
[329625340,1718514704195,-500.0,0.00023013,3]
[329625341,1718514704217,-500.0,0.00023013,3]
[329625342,1718514704247,-500.08,0.00023013,3]
[329625343,1718514704280,-500.0,0.00023013,3]
[329625344,1718514704328,-500.0,0.00023013,3]
[329625345,1718514704345,-500.0,0.00023013,3]
[329625346,1718514704361,-500.0,0.00023013,3]
[329625347,1718514704392,-181.27890199,0.00023013,3]
[329625348,1718514704404,-959.23,0.00023013,3]
[329625349,1718514704420,-500.0,0.00023013,3]
[329625350,1718514704440,-631.23,0.00023013,3]
[329625351,1718514704455,-500.0,0.00023013,3]
[329625352,1718514704468,-500.0,0.00023013,3]
[329625353,1718514704495,-666.35,0.00023013,3]